bitfinex/quotes_ETHUSD_20250622
["timestamp","ask_amount","ask_price","bid_price","bid_amount"]
[1750621564027,3.464293,2182.8,2182.2,1.5674]
[1750621564259,1.377293,2182.8,2182.7,4.58148165]
[1750621564464,0.4572,2183.1,2182.5,4.58187605]
[1750621564628,0.4572,2183.1,2182.6,0.45818761]
[1750621564831,10.4572,2183.1,2182.7,4.58127687]
[1750621565154,0.4572,2183.1,2183.0,4.58085203]
[1750621565523,0.4572,2183.2,2183.1,4.5806422]
[1750621565829,1.6164,2183.5,2183.3,4.58020893]
[1750621566025,2.087,2183.6,2182.9,0.55]
[1750621566230,10.3210055,2183.6,2182.9,4.58106189]
[1750621566431,10.3210055,2183.6,2183.3,4.58018307]
[1750621566674,10.3210055,2183.6,2183.2,4.58032005]
[1750621566875,10.3810055,2183.6,2183.2,4.58032005]
[1750621567084,9.807,2183.6,2183.2,4.58041994]
[1750621567269,1.6164,2183.8,2183.4,4.57986093]
[1750621567472,7.724,2183.7,2183.4,4.57986093]
[1750621567679,7.724,2183.7,2183.0,5.13085203]
[1750621567680,7.784,2183.7,2183.1,4.58052093]
[1750621568044,0.06,2183.6,2183.2,4.58038461]
[1750621570155,0.06,2183.6,2183.1,4.58054811]
[1750621570359,0.06,2183.6,2183.2,4.58032381]
[1750621570744,0.06,2183.6,2183.3,4.58020975]
[1750621571086,7.724,2183.7,2183.4,4.5799799]
[1750621571383,1.5164,2183.8,2183.5,4.57967863]
[1750621571550,0.06,2183.7,2183.3,1.5676]
[1750621571751,0.06,2183.7,2183.2,4.58042309]
[1750621572081,11.012,2184.1,2183.2,4.58042309]
[1750621572082,2.147,2184.4,2183.5,1.5676]
[1750621572276,1.376282,2184.3,2184.1,4.57844272]
[1750621572477,2.147,2184.4,2184.1,4.57848633]
[1750621572649,2.147,2184.4,2183.6,0.55]
[1750621572650,9.812,2184.4,2184.0,4.57861504]
[1750621572856,9.812,2184.4,2184.1,4.57852421]
[1750621573065,2.087,2184.4,2184.1,4.57852421]
[1750621573698,2.087,2184.4,2184.1,0.91574289]
[1750621573859,2.087,2185.3,2184.1,0.55]
[1750621574042,1.376005,2185.0,2184.1,0.55]
[1750621574386,1.376005,2185.0,2184.0,11.5676]
[1750621574387,2.961605,2185.0,2184.2,4.57833531]
[1750621574555,2.961605,2185.0,2184.5,4.57770656]
[1750621574774,2.8817605,2185.0,2184.7,4.57725538]
[1750621574957,0.23908244,2185.6,2184.7,4.57707869]
[1750621574958,9.3733,2185.3,2184.7,4.57707869]
[1750621575185,9.3733,2185.3,2184.8,4.57692905]
[1750621575369,9.4333,2185.3,2184.5,1.5083]
[1750621575556,0.06,2185.1,2184.7,4.57715512]
[1750621575762,0.06,2185.1,2184.8,4.57706276]
[1750621575957,10.06,2185.2,2184.8,4.57706276]
[1750621576175,12.00333,2185.2,2184.7,4.57720268]
[1750621576665,12.00333,2185.2,2184.8,4.57705594]
[1750621576989,11.94333,2185.2,2184.9,4.57684978]
[1750621577186,11.94333,2185.2,2184.8,4.57699539]
[1750621577497,1.6383,2185.3,2184.9,4.57686684]
[1750621577650,3.013889,2185.6,2184.7,5.12725891]
[1750621577853,1.6383,2185.6,2185.3,4.57590631]
[1750621578261,1.6383,2185.6,2185.2,4.57614987]
[1750621578656,1.6383,2185.6,2185.1,6.66738571]
[1750621578971,1.6383,2185.6,2185.2,4.57624016]
[1750621579354,1.6383,2185.6,2185.2,4.57611923]
[1750621579950,1.6383,2185.6,2185.1,6.66742593]
[1750621579951,0.06,2185.5,2185.1,6.66742593]
[1750621580148,0.0571914,2185.8,2185.2,4.57623153]
[1750621580355,1.42160674,2185.8,2185.2,4.57623153]
[1750621580888,1.375362,2186.0,2185.4,4.57570284]
[1750621581184,10.0,2186.1,2185.4,4.57572847]
[1750621581365,0.06,2186.0,2185.4,4.57572847]
[1750621581689,0.06,2185.8,2185.1,4.57628776]
[1750621581848,0.11719115,2185.8,2185.1,4.57628776]
[1750621582253,1.5516,2185.9,2184.9,1.5529]
[1750621582449,1.5516,2185.7,2184.8,4.57698315]
[1750621582650,1.5516,2185.5,2184.7,4.57718656]
[1750621582854,0.99278288,2185.4,2184.7,4.57718656]
[1750621583055,1.5516,2185.3,2184.0,0.44803277]
[1750621583298,11.60880222,2185.2,2184.4,4.57775195]
[1750621583454,19.3006,2185.2,2184.7,4.57709489]
[1750621583770,19.3006,2185.2,2184.6,4.57742442]
[1750621583972,21.533218,2185.2,2184.6,4.57742442]
[1750621584176,21.533218,2185.2,2184.7,4.57728191]
[1750621584177,21.590618,2185.2,2184.7,4.57728191]
[1750621584616,21.590618,2185.2,2184.6,4.57739124]
[1750621586205,21.590618,2185.2,2184.5,4.6181106]
[1750621586693,21.590618,2185.2,2184.6,4.5774535]
[1750621586901,13.11373294,2185.1,2184.3,4.5780805]
[1750621587122,0.05720694,2185.0,2184.4,0.0401701]
[1750621587312,0.05720694,2185.0,2184.3,4.57792686]
[1750621587510,11.29660097,2185.0,2184.2,4.57821002]
[1750621587689,0.0574,2184.9,2184.2,4.57821002]
[1750621587885,9.3426,2184.8,2184.1,4.57843652]
[1750621588098,0.11461889,2184.7,2184.1,4.57850201]
[1750621588524,0.11461889,2184.7,2184.0,4.6188656]
[1750621588821,0.11461889,2184.7,2184.0,5.54271168]
[1750621589390,0.11461889,2184.7,2184.1,4.57846667]
[1750621589624,0.11461889,2184.7,2184.0,5.54269831]
[1750621590526,0.11461889,2184.7,2184.2,4.57832424]
[1750621590726,0.11461889,2184.7,2184.1,4.57844592]
[1750621591029,1.7204,2184.6,2184.2,0.04020638]
[1750621591326,1.7204,2184.6,2184.2,4.57821012]
[1750621591528,1.7204,2184.6,2184.3,4.57811699]
[1750621591699,1.663,2184.6,2184.4,4.57780722]
[1750621592127,1.663,2184.6,2184.5,4.57770656]
[1750621592316,7.761,2184.8,2184.4,4.57785559]
[1750621592512,7.761,2184.8,2184.3,4.57805089]
[1750621592513,0.0574,2184.7,2184.3,4.57805089]
[1750621592715,1.663,2184.9,2184.4,4.6180892]
[1750621592922,11.663,2184.9,2184.6,4.57747453]
[1750621593094,11.663,2184.9,2184.5,4.5775939]
[1750621593310,11.663,2184.9,2184.6,4.57746927]
[1750621593631,1.663,2184.9,2184.4,4.65849523]
[1750621594134,1.663,2184.9,2184.5,4.57768808]
[1750621595098,1.7204,2184.9,2184.5,4.57768808]
[1750621595498,0.0574,2184.8,2184.3,4.57795601]
[1750621595728,1.72021517,2184.9,2184.4,4.57791497]
[1750621596026,0.0574,2184.8,2184.4,4.57791497]
[1750621596226,0.0574,2184.8,2184.2,4.57825165]
[1750621596227,1.5996,2184.6,2184.0,12.09]
[1750621596426,1.5996,2184.6,2184.2,4.57819656]
[1750621596629,0.0574,2184.5,2184.1,4.57843753]
[1750621596828,7.86662129,2184.5,2183.8,4.57917391]
[1750621597033,1.5996,2184.4,2183.8,0.82992739]
[1750621597232,1.5996,2184.2,2183.5,4.57980306]
[1750621597433,1.5996,2184.2,2183.6,4.57945753]
[1750621597434,0.0574,2184.0,2183.6,4.57945753]
[1750621597633,0.0574,2184.0,2183.5,4.57969818]
[1750621597930,0.0574,2183.8,2183.4,2.09]
[1750621598112,0.0574,2183.8,2183.4,4.5798525]
[1750621598615,0.0574,2183.8,2183.3,4.58011009]
[1750621598818,0.05724361,2183.8,2183.3,6.6591673]
[1750621599024,0.11464361,2183.8,2183.4,4.57993782]
[1750621599332,0.0574,2183.7,2183.3,22.58015404]
[1750621600608,0.0574,2183.7,2183.3,18.0]
[1750621600846,0.0574,2183.7,2183.5,4.57967216]
[1750621601032,0.05724361,2183.8,2183.3,22.58018851]
[1750621601233,1.657,2183.9,2183.5,4.57970341]
[1750621601416,1.65683987,2183.9,2183.4,2.25801885]
[1750621601611,0.0574,2183.7,2183.4,2.25801885]
[1750621601818,0.0574,2183.7,2183.3,4.58012287]
[1750621602121,0.0574,2183.7,2183.1,4.58055634]
[1750621602321,0.0574,2183.7,2183.2,4.58040738]
[1750621603028,0.0574,2183.7,2182.9,10.0]
[1750621603029,1.5031,2183.6,2182.9,10.0]
[1750621603241,0.55,2183.2,2182.3,4.5822344]
[1750621603420,1.5031,2182.9,2182.2,4.58234838]
[1750621603611,7.92767588,2182.8,2182.4,0.38250669]
[1750621603930,7.8704,2182.8,2182.4,0.38250669]
[1750621604686,1.5031,2182.9,2182.5,0.04029747]
[1750621604823,1.5031,2182.9,2182.8,4.58111065]
[1750621604824,1.377243,2182.9,2182.8,4.58111065]
[1750621605023,1.377243,2182.9,2182.8,5.60364709]
[1750621605345,1.5218,2183.2,2183.1,4.5806422]
[1750621605654,1.5218,2183.2,2182.9,4.58106189]
[1750621605818,1.5218,2183.2,2182.8,5.50344163]
[1750621606016,0.0572575,2183.1,2182.7,4.58145526]
[1750621606657,0.0572575,2183.1,2182.6,4.58162111]
[1750621606824,0.1146575,2183.1,2182.6,14.58162111]
[1750621607137,0.0574,2182.9,2182.2,5.04666041]
[1750621607460,0.0574,2182.6,2181.8,4.58328509]
[1750621607632,1.5218,2182.5,2181.7,4.58344685]
[1750621607953,0.0574,2182.3,2181.5,13.095]
[1750621608155,0.0574,2182.3,2181.8,4.58321462]
[1750621608454,7.8782841,2182.4,2181.8,4.58321462]
[1750621608751,7.8782841,2182.4,2181.8,4.58327431]
[1750621608752,0.0574,2182.3,2181.8,4.58327431]
[1750621608957,0.05728721,2182.2,2181.8,4.58327431]
[1750621609250,0.0574,2182.3,2181.9,7.12201315]
[1750621609941,0.0574,2182.3,2181.9,7.16236294]
[1750621610139,0.0574,2182.3,2181.9,7.12203965]
[1750621610857,0.0574,2182.3,2181.9,7.02203965]
[1750621611063,7.87828353,2182.4,2181.9,7.02203965]
[1750621611064,7.87828353,2182.4,2181.9,2.4389707]
[1750621611227,1.6974,2182.2,2181.9,2.4389707]
[1750621611556,1.75468723,2182.2,2181.9,7.02209936]
[1750621611762,1.75468723,2182.2,2181.9,2.4389707]
[1750621612057,0.0574,2182.1,2181.9,2.4389707]
[1750621612265,0.0571,2182.1,2181.9,2.4389707]
[1750621612768,0.0571,2182.0,2181.9,2.4389707]
[1750621613485,1.69729132,2182.2,2181.9,2.4389707]
[1750621613680,0.0571,2182.1,2181.9,2.4389707]
[1750621614439,1.75439132,2182.2,2181.9,2.4389707]
[1750621614635,0.0571,2182.1,2181.9,2.4389707]
[1750621615759,1.69729132,2182.2,2181.9,2.4389707]
[1750621615944,0.0571,2182.1,2181.9,2.4389707]
[1750621616773,1.69729132,2182.2,2181.9,2.4389707]
[1750621616987,1.75439132,2182.2,2181.9,2.4389707]
[1750621617141,0.05728876,2182.1,2181.9,2.4389707]
[1750621617342,0.11438876,2182.1,2181.9,2.4389707]
[1750621617866,0.0571,2182.0,2181.9,2.4389707]
[1750621618194,1.6178,2182.0,2181.6,4.58366234]
[1750621618490,0.11439454,2181.9,2181.5,4.58391903]
[1750621618642,0.05729454,2181.9,2181.5,4.58391903]
[1750621618838,0.0571,2181.8,2181.3,4.58432813]
[1750621619266,0.0571,2181.8,2181.3,4.58431501]
[1750621619536,0.0571,2181.8,2180.8,10.0]
[1750621619744,1.569,2181.7,2181.2,4.58447401]
[1750621619944,0.0571,2181.6,2181.1,14.5847195]
[1750621620152,0.0571,2181.5,2181.0,4.58495606]
[1750621620352,0.05730091,2181.6,2181.0,4.58495606]
[1750621620555,0.0571,2181.5,2181.1,4.58482473]
[1750621620845,0.11440091,2181.6,2181.1,4.58479568]
[1750621621245,0.11440091,2181.6,2180.6,0.2257423]
[1750621621246,1.7111,2181.3,2180.6,0.2257423]
[1750621621464,1.654,2181.2,2180.6,0.2257423]
[1750621621644,1.654,2181.2,2181.0,4.58504359]
[1750621622082,0.0571,2181.5,2181.0,4.58504359]
[1750621622083,1.654,2181.8,2181.1,0.04037336]
[1750621622294,1.654,2182.1,2181.4,1.554]
[1750621622466,8.14209549,2183.1,2182.4,4.58198658]
[1750621622467,1.654,2182.5,2182.4,4.58198658]
[1750621622667,1.654,2182.5,2182.2,4.58242011]
[1750621623258,1.654,2182.5,2182.0,6.19678244]
[1750621623259,1.654,2182.5,2182.0,1.614]
[1750621623612,1.654,2182.5,2182.2,4.58241306]
[1750621624463,1.654,2182.5,2182.2,0.04030659]
[1750621624668,1.654,2182.5,2182.2,4.58251903]
[1750621624971,1.654,2182.5,2182.3,4.58229906]
[1750621625172,1.654,2182.5,2182.1,4.58273837]
[1750621625173,1.654,2182.5,2182.2,4.58243336]
[1750621625387,1.654,2182.5,2182.2,0.04030659]
[1750621625588,1.654,2182.5,2182.1,4.58267877]
[1750621625792,1.654,2182.5,2182.1,5.04694665]
[1750621625978,1.654,2182.5,2182.2,4.58249427]
[1750621626379,0.05727521,2182.4,2182.1,5.04695541]
[1750621626588,1.7111,2182.5,2182.1,5.04695541]
[1750621627400,0.0572789,2182.4,2182.1,0.46426788]
[1750621627699,0.1143789,2182.4,2181.9,4.58308947]
[1750621628494,9.427,2182.5,2181.7,4.58355338]
[1750621628702,0.11437815,2182.4,2181.9,4.5831443]
[1750621628899,0.11437815,2182.4,2181.6,11.554]
[1750621628900,0.0571,2182.3,2182.0,4.58293738]
[1750621629086,0.05728416,2182.4,2181.9,4.58308425]
[1750621629402,0.05728416,2182.4,2182.0,4.58283999]
[1750621629403,0.11438416,2182.4,2182.0,4.58283999]
[1750621629600,0.05728416,2182.4,2182.0,0.91661546]
[1750621629825,9.4841,2182.5,2182.1,4.58264158]
[1750621630189,0.11437865,2182.4,2182.0,4.5828381]
[1750621630390,0.11437865,2182.4,2181.8,0.0361]
[1750621630391,0.05727865,2182.4,2181.8,4.61942287]
[1750621630600,0.11437865,2182.4,2182.0,4.58281639]
[1750621631723,0.11437865,2182.4,2181.8,0.0361]
[1750621631904,0.11438254,2182.4,2182.1,4.58264397]
[1750621632301,0.05728254,2182.4,2182.2,4.58238655]
[1750621632518,9.412,2182.5,2182.2,4.58238655]
[1750621633537,9.412,2182.5,2182.1,0.04031194]
[1750621633829,9.412,2182.5,2182.2,4.58236717]
[1750621634029,2.139,2182.6,2182.2,0.81889437]
[1750621634228,1.6173,2182.7,2182.6,4.58169156]
[1750621634812,1.377167,2183.1,2182.8,4.58127176]
[1750621635008,1.377167,2183.1,2182.7,4.58146166]
[1750621635318,0.0571,2182.9,2182.5,4.58180025]
[1750621635507,0.0571,2182.9,2182.6,4.58158771]
[1750621635708,0.0571,2183.0,2182.6,4.58158771]
[1750621635908,1.6744,2183.0,2182.2,0.0209]
[1750621636114,0.0571,2182.7,2182.1,10.0]
[1750621636340,0.0571,2182.7,2181.8,2.09663513]
[1750621636341,0.0571,2182.5,2181.8,2.09663513]
[1750621636541,0.11438239,2182.5,2181.9,4.58302337]
[1750621637123,0.05728239,2182.5,2182.0,4.58284263]
[1750621637327,0.0571,2182.4,2182.0,4.58284263]
[1750621637825,0.0571,2182.4,2182.1,4.58270237]
[1750621638519,0.05728239,2182.5,2182.1,4.58270237]
[1750621638725,0.11438239,2182.5,2182.1,4.58270237]
[1750621639057,0.11438239,2182.5,2182.2,4.58252704]
[1750621639246,0.11438239,2182.5,2181.9,4.58307206]
[1750621639419,0.11438239,2182.5,2181.8,16.7190756]
[1750621639620,0.11438239,2182.5,2182.0,4.58282291]
[1750621639846,0.11438239,2182.5,2182.1,4.58267154]
[1750621640231,0.11438239,2182.5,2182.0,4.58284785]
[1750621640423,0.0571,2182.4,2182.0,4.58284785]
[1750621640750,0.0571,2182.4,2182.1,4.58273611]
[1750621641158,0.0571,2182.4,2182.0,4.5828385]
[1750621642768,1.5549,2182.2,2180.6,0.2257423]
[1750621642966,1.6152,2181.7,2180.6,0.2257423]
[1750621643145,1.5549,2181.4,2180.6,0.2257423]
[1750621643346,1.5549,2181.2,2180.6,0.2257423]
[1750621643556,2.15331755,2181.1,2180.7,4.58568349]
[1750621643754,2.15331755,2181.1,2180.6,4.81153598]
[1750621643970,2.15331755,2181.1,2180.8,4.58545836]
[1750621644133,2.15331755,2181.1,2180.8,4.58544943]
[1750621644874,2.15331755,2181.1,2180.7,4.58560456]
[1750621645179,2.15331755,2181.1,2180.7,22.58556008]
[1750621645532,2.21361755,2181.1,2180.8,4.58544818]
[1750621645739,2.21361755,2181.1,2180.7,22.5855689]
[1750621645988,2.21361755,2181.1,2180.8,4.585448]
[1750621646279,0.05731755,2181.1,2180.7,18.0]
[1750621646447,1.2645393,2181.1,2180.7,22.58556522]
[1750621646789,1.2645393,2181.1,2180.6,4.81158786]
[1750621647081,1.2042393,2181.1,2180.7,4.58567017]
[1750621647241,0.05730817,2181.4,2180.7,11.6322]
[1750621647445,1.5704,2181.5,2181.3,4.58442213]
[1750621647800,3.6664,2181.7,2181.4,4.58402613]
[1750621647944,3.7267,2181.7,2180.8,10.55]
[1750621648145,0.0572971,2181.6,2181.2,4.58460245]
[1750621648362,0.0603,2181.5,2181.2,4.5846147]
[1750621648540,0.0603,2181.5,2181.1,4.58474757]
[1750621648878,0.1175971,2181.6,2181.2,4.58447587]
[1750621649041,0.1175971,2181.6,2181.3,4.58440296]
[1750621649479,0.0603,2181.6,2181.3,4.58440296]
[1750621649703,0.11760495,2181.6,2181.2,4.58454331]
[1750621650178,1.62770504,2181.7,2181.3,4.5843143]
[1750621650373,0.0573003,2181.6,2181.3,4.5843143]
[1750621650574,11.4604,2181.7,2181.4,4.58415271]
[1750621651081,11.4604,2181.7,2181.0,0.0571]
[1750621651266,1.5704,2181.7,2181.3,0.0571]
[1750621651470,1.5704,2181.7,2181.6,4.58379171]
[1750621651655,9.886,2181.9,2181.8,4.58337152]
[1750621651850,9.886,2181.9,2181.1,6.14940828]
[1750621651851,1.6478,2182.0,2181.6,4.58361065]
[1750621652050,1.6478,2182.0,2181.7,4.58357361]
[1750621652249,1.6478,2182.0,2181.8,4.58334645]
[1750621652472,1.6478,2182.0,2181.9,4.58316146]
[1750621652646,1.6478,2182.0,2181.7,4.58337452]
[1750621652847,1.6478,2182.0,2181.8,4.58334197]
[1750621653055,1.6478,2182.0,2181.6,4.58379171]
[1750621653615,1.70509016,2182.0,2181.6,4.58379171]
[1750621653784,1.6478,2182.0,2181.8,4.58318924]
[1750621654187,10.0,2182.1,2181.8,4.58328666]
[1750621654389,10.0,2182.1,2181.6,4.58359453]
[1750621654591,10.0,2182.1,2181.7,4.58346552]
[1750621654790,10.0,2182.1,2181.7,0.0571]
[1750621655102,19.422,2182.2,2181.9,4.58301663]
[1750621655308,19.422,2182.2,2181.7,4.64059616]
[1750621655607,19.422,2182.2,2181.8,4.58321206]
[1750621655994,7.793,2182.2,2182.0,4.58285041]
[1750621656373,7.793,2182.2,2181.9,4.64016981]
[1750621656576,7.793,2182.2,2181.9,4.58306981]
[1750621657809,7.793,2182.2,2181.5,1.5972]
[1750621657995,0.05728237,2182.1,2181.7,4.58347115]
[1750621658311,0.11758237,2182.1,2181.7,4.58347115]
[1750621658676,0.11758237,2182.1,2181.5,1.5972]
[1750621658881,7.793,2182.2,2181.9,4.58302709]
[1750621659205,10.0,2182.3,2181.8,4.58328606]
[1750621659407,10.0,2182.3,2181.9,4.5830453]
[1750621660012,0.0603,2181.7,2181.0,4.58493707]
[1750621660308,0.0603,2181.4,2180.7,1.5419]
[1750621660492,0.11761315,2181.4,2180.7,6.12745691]
[1750621660813,0.11761315,2181.4,2180.7,1.5419]
[1750621660982,2.28090447,2181.4,2180.7,7.22152094]
[1750621661385,2.28090447,2181.4,2180.8,4.58542121]
[1750621661691,9.242192,2181.3,2180.9,4.58507645]
[1750621662008,10.0,2181.3,2181.0,4.58504114]
[1750621662376,1.6005,2181.8,2181.3,4.58442213]
[1750621662576,1.6005,2181.8,2181.4,4.68150682]
[1750621662779,1.6005,2181.8,2181.2,1.5513]
[1750621663124,11.6005,2182.0,2181.5,4.58385508]
[1750621663498,11.6005,2182.0,2181.5,4.64095508]
[1750621664720,11.6005,2182.0,2181.5,4.58398969]
[1750621665199,11.6005,2182.0,2181.5,22.58398969]
[1750621665397,11.6005,2182.0,2181.5,4.58398969]
[1750621665582,11.6005,2182.0,2181.6,0.0403389]
[1750621665983,11.6005,2182.0,2181.5,0.0571]
[1750621666183,11.6005,2182.0,2181.3,5.19794539]
[1750621666184,14.86438,2182.0,2181.3,5.19794539]
[1750621666409,14.86438,2182.0,2181.4,0.04033891]
[1750621666714,11.6005,2182.0,2181.5,4.58390506]
[1750621667020,11.6005,2182.0,2181.6,0.0101]
[1750621667325,11.6005,2182.0,2181.7,4.58347732]
[1750621667534,10.0,2182.0,2181.6,0.05043893]
[1750621667820,10.0,2182.0,2181.6,4.59379574]
[1750621668224,10.0,2182.0,2181.7,4.58355016]
[1750621668616,10.0,2182.0,2181.6,5.51155067]
[1750621669724,10.0,2182.0,2181.6,4.59377703]
[1750621670413,7.85,2182.1,2181.7,0.04033378]
[1750621670619,7.85,2182.1,2181.8,4.58336599]
[1750621671217,2.097,2182.2,2181.9,4.58295191]
[1750621671816,2.097,2182.2,2181.8,4.58328695]
[1750621672019,2.097,2182.2,2181.8,1.0795793]
[1750621672262,2.097,2182.2,2181.8,5.71992471]
[1750621672837,2.097,2182.2,2181.9,4.62343811]
[1750621673135,2.097,2182.2,2181.8,5.71996895]
[1750621674204,7.832,2182.5,2182.0,4.58284985]
[1750621674523,17.832,2182.5,2182.1,0.96093972]
[1750621674745,10.0,2182.5,2182.1,0.96093972]
[1750621675020,1.5602,2182.6,2182.3,4.64222072]
[1750621675185,2.147,2182.8,2182.3,0.06]
[1750621675389,1.5602,2182.7,2182.2,4.58243327]
[1750621675586,1.5602,2182.7,2182.2,5.67109419]
[1750621675791,1.5602,2182.7,2182.3,4.58223556]
[1750621675988,1.5602,2182.7,2182.3,4.64223556]
[1750621676398,0.11896817,2182.6,2181.8,2.7408793]
[1750621676594,0.0617,2182.2,2181.6,14.5836182]
[1750621676827,7.8887,2182.1,2181.6,16.66652472]
[1750621677027,0.05728762,2182.0,2181.6,16.66652472]
[1750621677326,0.0617,2182.0,2181.6,16.66652472]
[1750621677631,3.7072,2182.3,2181.9,4.58297789]
[1750621677826,0.0617,2182.2,2181.8,4.58318914]
[1750621678030,0.0617,2182.2,2181.8,6.70814071]
[1750621678903,3.82617948,2182.3,2181.8,6.70820887]
[1750621679412,3.82617948,2182.3,2181.7,4.58356278]
[1750621679613,3.82617948,2182.3,2181.5,12.147]
[1750621679931,3.82617948,2182.3,2181.9,4.5830583]
[1750621680501,0.0617,2182.2,2181.5,4.5838318]
[1750621680719,0.05729008,2182.1,2181.6,4.58369492]
[1750621680925,0.05729008,2182.2,2181.6,4.58369492]
[1750621681331,0.0617,2182.1,2181.6,4.58369492]
[1750621681501,0.05729008,2182.2,2181.7,4.58356036]
[1750621681701,3.8261901,2182.3,2181.6,0.06]
[1750621681940,3.8261901,2182.3,2181.7,4.58356534]
[1750621682247,3.8261901,2182.3,2181.8,4.58337152]
[1750621682436,0.0617,2182.2,2181.8,4.58337152]
[1750621682735,0.0617,2182.2,2181.7,4.58347385]
[1750621682937,3.7644901,2182.3,2181.6,4.98445588]
[1750621682938,3.7644901,2182.3,2181.9,4.58303572]
[1750621683238,3.7072,2182.3,2182.0,0.04032175]
[1750621683531,3.7072,2182.3,2182.0,4.62310395]
[1750621683736,3.7072,2182.3,2182.1,4.5827208]
[1750621683952,11.6205,2182.5,2181.9,0.91663999]
[1750621684152,11.6205,2182.5,2182.0,4.58276422]
[1750621684459,11.6822,2182.5,2182.0,5.74939574]
[1750621684951,11.6205,2182.5,2182.1,4.64274139]
[1750621685247,0.0617,2182.3,2181.7,0.06]
[1750621685567,0.0617,2182.3,2181.8,4.58316248]
[1750621685705,0.0617,2182.3,2181.9,5.50579085]
[1750621686138,0.0617,2182.3,2181.9,0.9226678]
[1750621686302,11.6205,2182.5,2181.9,5.5058026]
[1750621686508,11.6205,2182.5,2182.0,4.58275761]
[1750621686740,0.05727861,2182.4,2181.9,5.50572564]
[1750621686918,0.11897861,2182.4,2182.0,1.00890388]
[1750621687113,0.11897861,2182.4,2182.0,5.59182358]
[1750621687318,0.0617,2182.4,2182.0,5.59182358]
[1750621687717,0.0617,2182.4,2182.0,1.00890388]
[1750621688321,0.0617,2182.4,2182.0,5.5918529]
[1750621688806,0.0617,2182.4,2182.0,1.00890388]
[1750621689039,1.5311,2182.2,2181.6,4.92441719]
[1750621689245,0.05728785,2182.1,2181.6,4.92441719]
[1750621689441,0.11898785,2182.1,2181.6,4.92441719]
[1750621689943,9.3321,2182.2,2181.6,4.92443304]
[1750621690147,1.6406,2182.5,2182.2,4.5824274]
[1750621690364,10.05727737,2182.4,2181.7,0.66103068]
[1750621690647,10.0,2182.4,2182.1,4.58262437]
[1750621690945,10.0,2182.4,2182.3,4.5823214]
[1750621691149,7.797,2182.5,2182.3,4.5823214]
[1750621691346,7.797,2182.5,2182.2,4.58242666]
[1750621691948,7.797,2182.5,2182.3,4.5821166]
[1750621692151,7.797,2182.5,2182.1,0.91655386]
[1750621692350,7.797,2182.5,2182.1,5.49914647]
[1750621692547,10.0,2182.6,2182.1,5.49914647]
[1750621692753,10.0617,2182.6,2182.1,5.49914647]
[1750621692959,10.0617,2182.6,2182.0,4.64286285]
[1750621692960,1.7023,2182.4,2182.0,4.58284905]
[1750621693254,0.05727838,2182.3,2181.7,4.31113068]
[1750621693450,0.05727838,2182.3,2181.8,4.58322639]
[1750621693751,1.6406,2182.4,2181.9,4.58314265]
[1750621693953,9.4476,2182.4,2182.1,4.58264375]
[1750621694256,1.6406,2182.4,2181.7,4.31113068]
[1750621694453,1.6406,2182.2,2181.6,0.34071738]
[1750621694673,1.6406,2182.0,2181.1,1.5031]
[1750621694862,0.0617,2181.8,2181.4,4.58411214]
[1750621695164,0.0617,2181.8,2181.5,4.58390109]
[1750621696365,11.6406,2182.0,2181.8,4.58322101]
[1750621697069,11.6406,2182.0,2181.7,4.58349059]
[1750621697269,13.80623,2182.0,2181.1,1.5031]
[1750621697571,1.6406,2182.0,2181.9,4.58316146]
[1750621697780,11.6406,2182.0,2181.8,4.58326518]
[1750621698466,11.6406,2182.0,2181.9,4.58316146]
[1750621698671,11.6406,2182.0,2181.5,1.6534]
[1750621698882,11.7023,2182.0,2181.6,4.58367388]
[1750621699224,11.7023,2182.0,2181.7,4.58355221]
[1750621699922,11.7023,2182.0,2181.6,4.58367616]
[1750621700121,11.7023,2182.0,2181.7,4.58358044]
[1750621700566,11.6406,2182.0,2181.7,4.58347406]
[1750621700873,11.7023,2182.0,2181.6,4.58374886]
[1750621701070,0.1189891,2181.9,2181.4,4.58400325]
[1750621701277,0.0617,2181.8,2181.4,4.58400325]
[1750621701563,0.0617,2181.8,2181.4,4.58413035]
[1750621701751,0.0572891,2181.9,2181.4,4.58413035]
[1750621701922,0.0617,2181.8,2181.4,4.58418673]
[1750621702128,1.6406,2182.0,2181.6,4.58379171]
[1750621702344,1.6406,2182.0,2181.7,0.04033098]
[1750621702549,1.5627,2181.8,2181.5,0.06]
[1750621702746,0.05729965,2181.7,2181.5,0.06]
[1750621703057,1.5627,2181.8,2181.5,4.643918]
[1750621703641,1.5627,2181.8,2181.6,4.58375907]
[1750621703845,1.506,2181.8,2181.5,4.64389347]
[1750621704160,1.506,2181.8,2181.5,5.56669053]
[1750621704455,1.506,2181.8,2181.5,4.64389347]
[1750621704830,1.506,2181.8,2181.5,0.06]
[1750621705026,1.506,2181.8,2181.5,4.64390415]
[1750621705647,1.506,2181.8,2181.5,0.06]
[1750621706222,1.61999236,2181.8,2181.5,0.06]
[1750621706445,1.5627,2181.8,2181.5,0.06]
[1750621706856,1.61999527,2181.8,2181.5,0.06]
[1750621707058,0.0567,2181.7,2181.5,0.06]
[1750621709462,10.0,2181.9,2181.7,4.58349613]
[1750621709663,1.5865,2182.0,2181.5,5.10830822]
[1750621709962,7.8547,2181.9,2181.5,5.10830822]
[1750621710169,7.8547,2181.9,2181.6,4.5837906]
[1750621710729,0.0567,2181.7,2181.5,0.06]
[1750621711352,0.0567,2181.8,2181.5,0.06]
[1750621711558,0.0567,2181.8,2181.5,4.64389654]
[1750621711761,0.0567,2181.8,2181.5,0.06]
[1750621711965,1.00654972,2181.8,2181.5,0.06]
[1750621712298,0.0567,2181.7,2181.5,0.06]
[1750621713084,0.05729716,2181.8,2181.5,0.06]
[1750621713383,7.85529692,2181.9,2181.6,4.58378487]
[1750621713600,7.8547,2181.9,2181.6,4.58378487]
[1750621713876,7.798,2181.9,2181.6,4.58370005]
[1750621714041,7.8547,2181.9,2181.5,4.64388381]
[1750621714376,7.8547,2181.9,2181.5,5.56668468]
[1750621715671,7.8547,2181.9,2181.6,4.58378837]
[1750621715975,7.8547,2181.9,2181.6,4.5836993]
[1750621716379,7.8547,2181.9,2181.5,5.56670017]